bitfinex-derivatives/quotes_ETHF0:USTF0_20250217
["timestamp","ask_amount","ask_price","bid_price","bid_amount"]
[1739794619242,4.73425,2762.5,2762.2,0.72943869]
[1739794619444,4.0103,2762.5,2762.4,0.72397]
[1739794620545,4.0103,2762.5,2762.2,0.00542869]
[1739794620746,3.10011087,2762.3,2762.2,0.00542869]
[1739794621254,4.0103,2762.5,2762.4,0.72397]
[1739794621645,4.0103,2762.5,2762.3,0.72398]
[1739794621845,4.73425,2762.5,2762.2,0.72943869]
[1739794622145,3.82411087,2762.3,2762.2,0.00542869]
[1739794623152,3.10011087,2762.3,2762.2,0.00542869]
[1739794623449,4.0103,2762.5,2762.2,0.00542869]
[1739794624047,3.82411087,2762.3,2762.2,0.00542869]
[1739794626254,3.10011087,2762.3,2762.2,0.72944869]
[1739794626855,4.0103,2762.5,2762.4,0.72397]
[1739794627055,6.4713,2762.5,2762.2,0.00542869]
[1739794627255,6.4713,2762.5,2762.4,0.72397]
[1739794627459,3.2635,2762.5,2762.4,0.72397]
[1739794627846,0.8025,2762.5,2762.4,0.72397]
[1739794628658,0.8025,2762.5,2762.2,0.81982869]
[1739794628958,3.10011087,2762.3,2762.2,0.00542869]
[1739794629163,0.8025,2762.5,2762.2,0.00542869]
[1739794629457,0.8025,2762.5,2762.4,0.72397]
[1739794630153,3.10011087,2762.6,2762.4,0.72397]
[1739794630353,2.461,2762.7,2762.2,0.00542869]
[1739794630660,2.461,2762.7,2762.5,0.72392]
[1739794630849,3.9956,2762.8,2762.6,0.7239]
[1739794631050,3.2078,2762.8,2762.7,0.72389]
[1739794633259,2.461,2763.1,2762.5,0.7874]
[1739794633260,5.6688,2763.1,2762.5,0.7874]
[1739794633454,5.6688,2763.1,2763.0,0.72381]
[1739794633757,5.6688,2763.1,2762.6,3.2078]
[1739794633959,3.9956,2763.4,2763.3,0.72373]
[1739794634156,3.2078,2763.4,2763.3,0.72373]
[1739794634353,3.2078,2763.4,2762.9,3.2078]
[1739794634354,3.2078,2763.4,2763.1,0.72376]
[1739794634955,3.2078,2763.4,2763.0,0.7879]
[1739794635261,3.2078,2763.4,2763.2,0.72375]
[1739794635457,3.2078,2763.4,2763.2,0.72374]
[1739794635861,3.2078,2763.4,2763.1,0.7791]
[1739794636164,3.2078,2763.4,2763.3,0.72373]
[1739794638771,6.39133,2764.1,2763.8,0.72359]
[1739794639057,5.6678,2764.1,2763.8,0.72359]
[1739794639263,6.39134,2764.1,2763.8,0.72359]
[1739794639562,6.39134,2764.1,2763.7,0.00542869]
[1739794639563,5.6678,2764.1,2763.7,0.00542869]
[1739794639757,0.7986,2764.0,2763.7,0.00542869]
[1739794639963,3.10011087,2763.9,2763.7,0.00542869]
[1739794640162,3.9314,2763.8,2763.7,0.00542869]
[1739794640554,3.2078,2763.8,2763.7,0.00542869]
[1739794640860,3.2078,2764.5,2763.7,0.00542869]
[1739794641066,3.2078,2764.5,2764.0,0.72354]
[1739794641257,3.10011087,2764.3,2764.0,0.72354]
[1739794641466,3.82360087,2764.3,2763.8,3.93139]
[1739794641659,3.82360087,2764.3,2763.9,0.72355]
[1739794641861,3.10011087,2764.3,2764.1,0.72352]
[1739794642164,3.2078,2764.9,2764.1,3.2078]
[1739794642464,6.30791087,2764.9,2764.1,3.2078]
[1739794642658,7.03124087,2764.9,2764.1,3.2078]
[1739794642962,6.30791087,2764.9,2764.7,0.72336]
[1739794643160,3.2078,2764.9,2764.8,0.72334]
[1739794643566,3.2078,2764.9,2764.7,0.72334]
[1739794643768,3.2078,2764.9,2764.8,0.72334]
[1739794644261,3.2078,2764.9,2764.3,1.6003]
[1739794644462,3.2078,2765.6,2764.8,3.10011087]
[1739794644662,3.2078,2765.6,2764.7,3.2078]
[1739794644663,3.10011087,2765.5,2764.9,0.7508]
[1739794644968,3.10011087,2765.5,2765.0,3.2078]
[1739794645266,3.10011087,2765.5,2765.1,0.72324]
[1739794645461,3.10011087,2765.5,2765.0,3.2078]
[1739794645861,3.10011087,2765.5,2765.2,0.72323]
[1739794646165,5.6758,2765.6,2765.0,4.0631]
[1739794646363,3.2078,2765.6,2765.5,0.72316]
[1739794646660,3.2078,2765.6,2765.3,7.70175924]
[1739794646863,0.72318,2765.4,2765.3,0.00542869]
[1739794647061,3.18818,2765.4,2765.3,0.00542869]
[1739794647763,9.18818,2765.4,2765.3,0.00542869]
[1739794647966,11.56511087,2765.4,2764.1,3.2078]
[1739794648171,3.2078,2764.7,2764.1,3.2078]
[1739794648466,8.77291087,2764.8,2764.1,3.2078]
[1739794648660,3.93125,2764.4,2763.9,1.57886]
[1739794648967,5.6738,2764.4,2763.9,0.8553]
[1739794649175,5.67922869,2764.4,2763.9,0.86072869]
[1739794649673,5.67922869,2764.4,2763.9,0.00542869]
[1739794650166,3.2078,2764.1,2763.9,0.00542869]
[1739794650373,2.464,2764.0,2763.9,0.00542869]
[1739794651571,2.464,2764.0,2763.9,0.72900869]
[1739794651772,2.464,2764.0,2763.9,0.00542869]
[1739794651960,2.464,2764.0,2763.9,0.72900869]
[1739794652365,2.464,2764.0,2763.9,0.00542869]
[1739794652865,3.18755,2764.0,2763.9,0.00542869]
[1739794653262,0.72368,2763.5,2763.0,3.93161]
[1739794653466,3.2078,2763.5,2763.0,3.2078]
[1739794653661,3.2078,2763.5,2762.8,1.6531]
[1739794653662,3.10011087,2763.4,2762.8,1.6531]
[1739794653869,3.10011087,2763.1,2762.5,0.02420321]
[1739794654167,2.466,2763.0,2762.6,0.7239]
[1739794654777,2.466,2763.0,2762.6,0.72389]
[1739794654974,2.466,2763.0,2762.5,0.00542869]
[1739794655171,2.466,2763.0,2762.9,0.72384]
[1739794655375,2.466,2763.0,2762.5,0.00542869]
[1739794655577,2.466,2763.0,2762.8,0.72385]
[1739794655872,2.466,2763.0,2762.9,0.72384]
[1739794656268,0.8343,2763.4,2763.1,0.72379]
[1739794656570,2.467,2763.4,2762.7,6.30791087]
[1739794656771,2.467,2763.4,2763.2,0.72375]
[1739794657172,2.467,2763.4,2763.1,3.2078]
[1739794657476,2.467,2763.4,2763.1,3.93158]
[1739794657871,8.77491087,2763.4,2762.8,4.0257]
[1739794658079,4.0426,2763.3,2762.8,3.2078]
[1739794658265,0.7238,2763.1,2762.6,0.72391]
[1739794658573,2.471,2763.6,2763.0,3.10011087]
[1739794658872,5.6788,2763.7,2763.2,0.72376]
[1739794659081,5.6788,2763.7,2763.5,0.72367]
[1739794659377,3.2078,2763.7,2763.5,0.72368]
[1739794659672,0.72367,2763.6,2763.2,0.72375]
[1739794659870,7.03155087,2763.7,2763.2,0.72375]
[1739794660075,3.93145,2763.7,2763.3,0.72372]
[1739794660276,3.2078,2763.7,2763.1,4.9134]
[1739794660466,3.2078,2763.7,2763.1,5.63718]
[1739794660666,2.476,2763.8,2762.7,4.28073]
[1739794660667,3.10011087,2763.6,2762.7,3.2078]
[1739794660873,0.72379,2763.1,2762.7,3.2078]
[1739794661082,0.72379,2763.1,2762.7,3.93168]
[1739794661279,0.72379,2763.1,2762.8,0.72386]
[1739794661474,4.8649,2763.2,2762.8,0.72386]
[1739794661678,0.72381,2763.1,2762.7,3.93168]
[1739794661978,4.8649,2763.2,2762.7,3.2078]
[1739794662480,0.72382,2763.0,2762.7,3.2078]
[1739794662779,0.72382,2763.0,2762.7,3.93169]
[1739794663075,0.72379,2763.1,2762.7,3.2078]
[1739794663378,0.7238,2763.1,2762.7,3.2078]
[1739794663576,0.7238,2763.1,2762.8,0.72385]
[1739794663777,4.8649,2763.2,2762.7,3.2078]
[1739794663975,4.8649,2763.2,2762.9,0.72383]
[1739794664386,4.8649,2763.2,2762.9,0.72384]
[1739794664682,4.8649,2763.2,2762.7,3.2078]
[1739794664877,4.8649,2763.2,2762.5,1.71102869]
[1739794664878,3.2078,2762.9,2762.5,0.00542869]
[1739794665072,0.72392,2762.7,2762.5,0.00542869]
[1739794665272,0.72392,2762.6,2762.5,0.00542869]
[1739794665472,3.10011087,2762.7,2762.5,0.00542869]
[1739794665681,3.10011087,2762.7,2762.5,0.72935869]
[1739794665878,6.40065,2762.9,2762.5,0.72935869]
[1739794666079,0.72388,2762.8,2762.5,0.72935869]
[1739794666278,5.6768,2762.9,2762.5,0.00542869]
[1739794666475,0.72387,2762.8,2762.5,0.72935869]
[1739794666671,5.6768,2762.9,2762.5,0.00542869]
[1739794666876,5.6768,2762.9,2762.7,0.72388]
[1739794667386,2.469,2762.9,2762.5,0.00542869]
[1739794667685,2.469,2762.9,2762.8,0.72386]
[1739794669081,0.00542869,2763.0,2762.5,1.81526869]
[1739794669288,0.00542869,2763.0,2762.5,0.00542869]
[1739794669481,0.00542869,2763.0,2762.9,0.72384]
[1739794669986,0.00542869,2763.0,2762.7,3.2078]
[1739794669987,0.72925869,2763.0,2762.7,3.2078]
[1739794670888,0.72384,2762.9,2762.7,3.2078]
[1739794671090,3.2078,2762.9,2762.5,0.00542869]
[1739794671389,3.93166,2762.9,2762.6,0.72391]
[1739794671887,3.2078,2762.9,2762.6,0.72391]
[1739794672073,3.2078,2762.9,2762.5,0.00542869]
[1739794672282,0.00542869,2763.0,2762.7,0.72388]
[1739794672686,0.72923869,2763.0,2762.7,0.72388]
[1739794672887,0.00542869,2763.0,2762.7,0.72388]
[1739794673287,0.00542869,2763.0,2762.8,0.72385]
[1739794673791,0.00542869,2763.0,2762.5,3.21322869]
[1739794673987,0.00542869,2763.0,2762.8,0.72386]
[1739794674187,0.00542869,2763.0,2762.5,3.21322869]
[1739794674391,0.00542869,2763.0,2762.8,0.72386]
[1739794674587,0.00542869,2763.0,2762.9,0.72384]
[1739794676099,0.00542869,2763.0,2762.9,3.93164]
[1739794676593,0.00542869,2763.0,2762.9,4.72564]
[1739794676797,0.00542869,2763.0,2762.9,5.51674]
[1739794677189,3.2078,2763.7,2763.6,0.72365]
[1739794677888,2.462,2763.9,2763.5,3.2078]
[1739794678094,2.462,2763.9,2763.6,0.794]
[1739794678594,3.18559,2763.9,2763.6,1.51765]
[1739794679090,2.462,2763.9,2763.6,0.794]
[1739794679288,2.462,2763.9,2763.5,3.2078]
[1739794679289,3.10011087,2763.7,2763.4,0.7911]
[1739794679685,3.10011087,2763.7,2762.9,3.2078]
[1739794679884,0.72373,2763.3,2763.0,0.7238]
[1739794680093,8.76991087,2763.4,2762.9,4.9143]
[1739794680597,0.8466,2763.3,2762.9,4.9143]
[1739794680789,0.72384,2762.9,2762.6,4.7487]
[1739794680991,0.72381,2763.0,2762.7,0.72388]
[1739794681288,0.8466,2763.3,2762.6,5.7313]
[1739794681591,0.8594,2763.6,2763.4,0.7237]
[1739794681792,2.463,2763.5,2763.4,0.7237]
[1739794681990,2.467,2763.9,2763.8,0.7236]
[1739794682793,0.00542869,2764.0,2763.9,0.72358]
[1739794682995,0.00542869,2764.0,2763.9,1.52638]
[1739794690195,0.8257,2764.9,2763.9,14.34344831]
[1739794690395,0.8257,2764.9,2764.7,0.72336]
[1739794690703,0.8257,2764.9,2764.7,0.72335]
[1739794691113,0.8257,2764.9,2764.5,0.8163]
[1739794691314,3.2078,2765.0,2764.9,0.72331]
[1739794691508,3.2078,2765.0,2764.5,0.8163]
[1739794691509,3.2078,2765.0,2764.8,0.72332]
[1739794691706,3.2078,2765.0,2764.5,0.8163]
[1739794691912,3.2078,2765.0,2764.6,0.72338]
[1739794692109,0.7233,2765.0,2764.8,0.72334]
[1739794692310,3.18228,2765.1,2764.8,0.72334]
[1739794692512,2.459,2765.1,2764.7,3.2078]
[1739794692712,3.2471,2765.2,2764.7,3.2078]
[1739794692913,3.2471,2765.2,2764.9,0.7233]
[1739794693119,3.2471,2765.2,2764.7,3.2078]
[1739794693318,3.97035,2765.2,2764.7,3.2078]
[1739794693611,0.7881,2765.2,2765.1,0.72326]
[1739794693818,0.7881,2765.2,2764.7,3.2078]
[1739794694814,0.7881,2765.2,2765.0,0.72327]
[1739794695010,1.51135,2765.2,2764.9,0.7233]
[1739794695211,0.7881,2765.2,2764.9,0.7233]
[1739794695408,1.51136,2765.2,2764.9,0.72329]
[1739794695611,1.51135,2765.2,2765.0,0.72329]
[1739794695812,0.7881,2765.2,2764.7,5.0162]
[1739794696014,0.7881,2765.2,2764.7,3.2078]
[1739794696220,0.72327,2765.1,2764.8,0.72333]
[1739794696524,0.72329,2765.1,2764.8,0.72333]
[1739794696724,3.97035,2765.2,2764.7,3.2078]
[1739794697216,3.97035,2765.2,2765.1,0.72326]
[1739794697217,3.2471,2765.2,2765.1,0.72326]
[1739794697716,3.2471,2765.2,2764.8,0.8113]
[1739794698017,3.2471,2765.2,2764.5,0.8163]
[1739794699318,3.2471,2765.2,2764.8,0.72334]
[1739794699515,3.2471,2765.2,2764.5,0.8163]
[1739794699717,0.72333,2764.9,2764.5,0.8163]
[1739794699916,3.2078,2765.0,2764.6,0.72338]
[1739794700114,3.2078,2764.9,2764.5,0.8163]
[1739794700317,0.72333,2764.9,2764.5,0.8163]
[1739794700516,0.72333,2764.9,2764.8,0.72334]
[1739794701227,3.2471,2765.2,2764.5,0.8163]
[1739794701419,0.72334,2764.9,2764.8,0.72333]
[1739794701723,3.2078,2764.9,2764.5,1.80854]
[1739794701925,3.2078,2764.9,2764.8,0.72334]
[1739794702525,3.93111,2764.9,2764.8,0.72334]
[1739794702720,0.72336,2764.8,2764.7,0.72335]
[1739794702915,2.459,2764.8,2764.4,0.72886869]
[1739794703121,0.72342,2764.5,2764.4,0.00542869]
[1739794703327,1.6614,2764.7,2764.4,0.00542869]
[1739794703623,0.7234,2764.6,2764.5,0.7234]
[1739794704020,0.72342,2764.5,2764.4,0.00542869]
[1739794704423,4.5932738,2764.5,2764.4,0.00542869]
[1739794704614,3.8698538,2764.5,2763.7,0.867]
[1739794704819,0.72352,2764.1,2763.7,0.867]
[1739794705124,0.809,2764.0,2763.9,0.72358]
[1739794705715,0.809,2764.0,2763.6,3.2078]
[1739794705920,0.809,2764.0,2763.7,0.00542869]
[1739794706228,3.268,2764.0,2763.7,0.00542869]
[1739794706724,3.268,2764.0,2763.9,0.72358]
[1739794707327,3.21322869,2764.2,2764.1,0.72352]
[1739794707528,0.00542869,2764.2,2764.1,0.72352]
[1739794707723,0.00542869,2764.2,2764.0,0.72354]
[1739794707925,0.72893869,2764.2,2764.0,0.72354]
[1739794708129,0.72354,2764.1,2763.9,0.72357]
[1739794708528,0.00542869,2764.2,2763.7,0.00542869]
[1739794708730,1.52866,2764.0,2763.8,0.7236]
[1739794709034,1.52866,2764.0,2763.7,0.00542869]
[1739794709227,3.98765,2764.0,2763.7,0.00542869]
[1739794709529,3.98765,2764.0,2763.8,0.7236]
[1739794709829,3.2641,2764.0,2763.7,0.00542869]
[1739794710625,3.98766,2764.0,2763.8,0.72358]
[1739794710824,3.98766,2764.0,2763.7,0.00542869]
[1739794710825,3.2641,2764.0,2763.9,0.72358]
[1739794711626,3.2641,2764.0,2763.8,0.72359]
[1739794711819,3.2641,2764.0,2763.9,0.72358]
[1739794712127,2.459,2764.0,2763.9,0.72358]
[1739794713127,2.459,2764.0,2763.7,0.00542869]
[1739794713332,0.72359,2763.9,2763.7,0.72904869]
[1739794713524,2.459,2764.0,2763.9,0.72358]
[1739794713724,0.00542869,2764.2,2763.7,0.00542869]
[1739794713935,2.459,2764.1,2763.8,1.80901]
[1739794714232,0.00542869,2764.2,2764.1,0.72352]
[1739794714441,0.00542869,2764.2,2763.9,1.6756]
[1739794714732,0.72354,2764.1,2763.9,1.6756]
[1739794714928,0.00542869,2764.2,2763.9,2.39917]
[1739794715232,0.00542869,2764.2,2763.9,1.6756]
[1739794715435,0.00542869,2764.2,2763.9,0.8586]
[1739794715731,0.00542869,2764.2,2764.1,0.72352]
[1739794715926,0.00542869,2764.2,2763.9,0.8586]
[1739794716129,0.72893869,2764.2,2764.0,0.72353]
[1739794716335,0.00542869,2764.2,2763.9,4.0664]
[1739794716633,0.00542869,2764.2,2764.1,0.72352]
[1739794717529,0.72893869,2764.2,2764.0,0.8558]
[1739794717734,0.00542869,2764.2,2764.1,0.72352]
[1739794718637,0.72893869,2764.2,2764.0,1.57934]
[1739794718829,1.52733869,2764.2,2764.0,1.57934]
[1739794719136,0.00542869,2764.2,2764.1,0.72352]
[1739794720630,0.00542869,2764.2,2764.1,3.81253088]
[1739794720934,0.7234,2764.6,2764.1,10.70504155]
[1739794721129,3.2574,2764.8,2764.2,3.2078]
[1739794721331,2.459,2764.8,2764.7,0.72337]
[1739794723330,3.2078,2764.9,2764.6,1.6685]
[1739794723533,3.2574,2765.2,2765.1,0.72326]
[1739794723728,0.7984,2765.2,2765.1,0.72326]
[1739794724440,3.3119,2765.3,2764.8,4.0358]
[1739794724633,3.3119,2765.3,2764.6,1.6685]
[1739794724634,3.2078,2765.2,2764.6,1.6685]
[1739794724831,6.40091088,2765.3,2764.6,2.39187]
[1739794724832,0.72331,2765.0,2764.6,2.39187]
[1739794725036,0.72333,2764.9,2764.6,2.39187]
[1739794725236,0.72333,2764.9,2764.6,2.39188]
[1739794725436,3.08901088,2765.0,2764.3,0.72346]
[1739794725740,3.93118,2764.7,2764.4,0.72343]
[1739794726138,0.72341,2764.6,2764.4,0.72343]
[1739794726334,0.72343,2764.5,2764.3,0.72346]
[1739794726535,0.72343,2764.5,2764.4,0.72345]
[1739794726741,4.0206,2764.7,2764.5,0.72342]
[1739794727237,0.7234,2764.6,2764.2,1.6251]
[1739794727442,0.72343,2764.5,2764.2,1.6251]
[1739794727735,0.72341,2764.6,2764.4,0.72345]
[1739794727934,4.0206,2764.7,2764.6,0.72339]
[1739794728135,0.8128,2764.7,2764.5,0.7234]
[1739794728332,2.459,2764.9,2764.8,0.72333]
[1739794729539,1.6701,2765.2,2764.6,5.01626]
[1739794729839,0.72328,2765.1,2764.9,0.72331]
[1739794730037,4.1291,2765.2,2764.8,0.8439]
[1739794730242,0.7233,2765.0,2764.8,0.8439]
[1739794730534,4.1291,2765.2,2765.0,0.72328]
[1739794730740,4.1291,2765.2,2764.8,0.8439]
[1739794730928,4.1291,2765.2,2765.0,0.72327]
[1739794731132,0.72326,2765.1,2765.0,0.72327]
[1739794731340,4.1291,2765.2,2765.0,0.72327]
[1739794731640,7.3369,2765.2,2764.8,0.8439]
[1739794731845,0.72329,2765.0,2764.8,1.56723]
[1739794732140,0.72333,2764.9,2764.7,0.72336]
[1739794732336,0.72333,2764.9,2764.8,0.72334]
[1739794733136,3.81232088,2765.0,2764.8,0.72334]
[1739794733435,3.08901088,2765.0,2764.5,3.2078]
[1739794733640,0.72335,2764.8,2764.3,2.4962]
[1739794733839,0.72336,2764.8,2764.6,0.72339]
[1739794734139,3.08901088,2764.7,2764.6,0.72339]
[1739794734530,0.7234,2764.6,2764.4,0.72343]
[1739794735043,0.7234,2764.6,2764.5,0.72342]
[1739794735336,0.7234,2764.6,2764.3,2.4962]
[1739794735543,3.89731088,2764.7,2764.3,2.4962]
[1739794735839,1.52881,2764.6,2764.4,0.72343]
[1739794736043,1.52881,2764.6,2764.3,2.4962]
[1739794736237,1.52881,2764.6,2764.4,0.72343]
[1739794736743,0.8054,2764.6,2764.3,2.4962]
[1739794736945,0.72344,2764.5,2764.4,0.72345]
[1739794737443,1.52881,2764.6,2764.5,0.72342]
[1739794737835,0.8054,2764.6,2764.5,0.72342]
[1739794738343,1.52879,2764.6,2764.5,0.72342]
[1739794738544,1.52879,2764.6,2764.3,1.6537]
[1739794738545,0.72343,2764.5,2764.4,0.72343]
[1739794738737,0.8054,2764.6,2764.3,1.6537]
[1739794738940,0.72343,2764.5,2764.4,0.72344]
[1739794739438,0.8054,2764.6,2764.5,0.72342]
[1739794739439,1.52881,2764.6,2764.5,0.72342]
[1739794739942,0.72343,2764.5,2764.4,0.72343]
[1739794740138,0.72351,2764.2,2764.1,0.72351]
[1739794740342,5.54801088,2764.4,2764.0,0.8614]
[1739794740536,6.27147088,2764.4,2764.0,0.8614]
[1739794740741,2.459,2764.4,2764.3,0.72347]
[1739794741443,2.458,2764.9,2764.2,3.2078]
[1739794741642,2.458,2764.9,2764.8,0.72334]
[1739794742539,1.5582,2765.0,2764.8,0.72334]
[1739794742747,2.459,2765.0,2764.9,0.72331]
[1739794743048,3.93107,2765.1,2764.7,1.80842]
[1739794743345,3.92391088,2765.3,2764.8,0.826]
[1739794743534,3.2078,2765.4,2764.8,0.826]
[1739794743737,3.81215088,2765.6,2764.9,5.01609]
[1739794743943,2.459,2765.5,2765.0,0.72327]
[1739794744242,0.72321,2765.3,2765.0,0.72327]
[1739794744544,5.6668,2765.5,2764.9,3.2078]
[1739794744842,6.38997,2765.5,2765.3,0.72321]
[1739794745148,6.38998,2765.5,2765.2,0.72322]
[1739794745346,6.38998,2765.5,2765.1,0.00542869]
[1739794745551,5.6668,2765.5,2765.3,0.7232]
[1739794745848,0.72319,2765.4,2765.1,0.00542869]
[1739794746048,6.38997,2765.5,2765.3,0.7232]
[1739794746248,5.6658,2765.5,2765.1,0.00542869]
[1739794746543,0.7232,2765.4,2765.1,0.00542869]
[1739794746939,3.08901088,2765.4,2765.1,0.00542869]
[1739794747140,3.93104,2765.2,2765.1,0.00542869]
[1739794747646,4.71954,2765.2,2765.1,0.00542869]
[1739794747839,10.71954,2765.2,2765.1,0.00542869]
[1739794748040,0.72339,2764.6,2764.4,0.72342]
[1739794748242,3.93122,2764.6,2764.3,0.8258]
[1739794748444,5.54701088,2764.7,2764.3,0.8258]
[1739794748745,5.54701088,2764.7,2764.5,0.72341]
[1739794748946,5.54701088,2764.7,2764.6,0.72339]
[1739794749136,6.27039088,2764.7,2764.5,0.7234]
[1739794749337,0.72339,2764.6,2764.3,0.83122869]
[1739794749645,5.54701088,2764.7,2764.4,0.72343]
[1739794749847,0.8517,2764.6,2764.5,0.72342]
[1739794750145,1.5751,2764.6,2764.5,0.72342]
[1739794750740,0.8517,2764.6,2764.5,0.72342]
[1739794750942,2.458,2764.6,2764.3,0.83122869]
[1739794751138,2.458,2764.6,2764.5,0.72342]
[1739794752150,2.458,2764.6,2764.3,0.83122869]
[1739794752348,3.18141,2764.6,2764.5,0.72342]
[1739794752852,2.458,2764.6,2764.5,0.72342]
[1739794755152,3.18139,2764.6,2764.5,0.72342]
[1739794755348,0.801,2764.8,2764.3,0.83122869]
[1739794755549,2.458,2764.8,2764.7,0.72337]
[1739794758352,3.2078,2765.0,2764.5,0.8234]
[1739794758557,5.6658,2765.0,2764.9,0.72331]
[1739794758957,6.38909,2765.0,2764.9,0.72331]
[1739794759155,5.6658,2765.0,2764.9,0.72331]
[1739794759454,6.38909,2765.0,2764.9,0.72331]
[1739794759656,5.6658,2765.0,2764.9,0.72331]
[1739794760155,6.38909,2765.0,2764.9,0.72331]
[1739794760549,6.38909,2765.0,2764.8,1.51812]
[1739794760550,0.72331,2764.9,2764.8,1.51812]
[1739794760755,0.72331,2764.9,2764.8,0.7948]
[1739794761560,5.6658,2765.0,2764.8,0.7948]
[1739794761753,0.72331,2764.9,2764.8,1.51812]
[1739794761956,5.6658,2765.0,2764.9,0.72331]
[1739794762360,3.2078,2765.0,2764.9,0.72331]
[1739794764357,3.3283,2765.3,2765.2,0.72324]
[1739794764861,0.72329,2765.0,2764.9,0.7233]
[1739794765160,0.72331,2764.9,2764.8,1.51813]
[1739794765361,6.41731088,2765.3,2764.8,0.7948]
[1739794765557,6.41731088,2765.3,2764.9,0.7233]
[1739794765760,8.22535088,2765.3,2764.8,0.7948]
[1739794765962,0.72331,2764.9,2764.8,0.7948]
[1739794766660,0.72331,2764.9,2764.8,0.72334]
[1739794767061,3.2078,2765.0,2764.7,0.8252]
[1739794767463,0.72332,2764.9,2764.8,0.72331]
[1739794768259,1.56072,2764.9,2764.7,0.8252]
[1739794768563,5.10371,2764.9,2764.4,0.8208]
[1739794768753,0.72342,2764.5,2764.4,0.8208]
[1739794768958,3.08901088,2764.6,2764.4,0.8208]
[1739794769153,3.81243088,2764.6,2764.5,0.72342]
[1739794769563,3.08901088,2764.6,2764.4,0.8208]
[1739794769767,0.72342,2764.5,2764.4,1.54424]
[1739794769968,0.72345,2764.4,2764.3,0.72889869]
[1739794770168,3.08901088,2764.6,2764.3,0.00542869]
[1739794770360,3.81241088,2764.6,2764.5,0.72342]
[1739794770561,6.27040088,2764.6,2764.5,0.72342]
[1739794771164,5.54701088,2764.6,2764.5,0.72342]
[1739794772569,6.27040088,2764.6,2764.5,0.72342]
[1739794774064,5.54701088,2764.6,2764.5,0.72342]
[1739794774274,2.458,2764.6,2764.5,0.72342]
[1739794774467,0.8768,2764.8,2764.7,0.72337]
[1739794774663,3.3348,2764.8,2764.7,0.72337]
[1739794774864,3.3348,2764.8,2764.6,0.72337]
[1739794775065,0.72337,2764.7,2764.6,0.72337]
[1739794775464,6.42381088,2764.8,2764.3,0.84822869]
[1739794775774,0.72342,2764.5,2764.4,0.72343]
[1739794776969,1.80842,2764.7,2764.3,0.84822869]
[1739794777164,3.08901088,2764.5,2764.3,0.84822869]
[1739794777376,0.72345,2764.4,2764.3,0.00542869]
[1739794777670,3.18145,2764.4,2764.3,0.00542869]
[1739794779572,3.18145,2764.4,2764.3,0.72889869]
[1739794779770,3.18145,2764.4,2764.3,0.00542869]
[1739794780869,3.18145,2764.4,2764.3,0.72889869]
[1739794781166,2.458,2764.4,2764.3,0.72889869]
[1739794781470,3.18145,2764.4,2764.3,0.72889869]
[1739794783771,2.458,2764.4,2764.3,0.72889869]
[1739794783971,3.18145,2764.4,2764.3,0.72889869]
[1739794784771,3.18145,2764.4,2764.3,0.00542869]
[1739794784972,3.18145,2764.4,2764.3,0.72889869]
[1739794787576,3.18145,2764.4,2764.3,0.00542869]
[1739794788268,3.18145,2764.4,2764.3,0.72889869]
[1739794789075,3.18145,2764.4,2764.3,0.00542869]
[1739794789875,3.18145,2764.4,2764.3,0.72889869]
[1739794790176,2.458,2764.4,2764.3,0.72889869]
[1739794790577,3.93121,2764.6,2764.5,0.72342]
[1739794790772,6.38921,2764.6,2764.5,0.72342]
[1739794792482,6.38919,2764.6,2764.5,0.72342]
[1739794793676,0.72339,2764.6,2764.5,0.72342]
[1739794793979,3.18139,2764.6,2764.5,0.72342]
[1739794794370,2.458,2764.6,2764.5,0.72342]
[1739794794773,3.18139,2764.6,2764.5,0.72342]
[1739794797070,6.38919,2764.6,2764.5,0.72342]
[1739794797972,6.38919,2764.6,2764.3,0.00542869]
[1739794797973,0.72345,2764.4,2764.3,0.00542869]
[1739794798376,41.52345,2764.4,2764.3,0.00542869]
[1739794798574,0.72345,2764.4,2764.3,0.00542869]
[1739794798974,3.92831088,2764.5,2763.5,2.5039]
[1739794799275,0.72364,2763.7,2763.6,0.72364]
[1739794799475,2.458,2763.8,2763.6,0.72364]
[1739794799776,3.18162,2763.8,2763.7,0.72363]
[1739794799970,2.458,2763.8,2763.7,0.72363]
[1739794801971,2.458,2763.8,2763.5,0.00542869]
[1739794802276,7.02046088,2763.6,2763.5,0.00542869]
[1739794805873,13.02046088,2763.6,2763.5,8.69e-06]
[1739794806472,12.29681088,2763.6,2762.8,0.7918]
[1739794806672,3.81285088,2762.9,2762.8,0.7918]
[1739794806873,6.27085088,2762.9,2762.8,0.7918]
[1739794807079,2.458,2762.9,2762.8,1.51566]
[1739794807386,2.458,2762.9,2762.8,0.7918]
[1739794807572,2.458,2762.9,2762.8,1.51566]
[1739794808975,2.458,2763.1,2763.0,0.72381]
[1739794809483,2.458,2763.3,2762.9,0.72384]
[1739794809683,2.458,2763.3,2763.2,0.72376]
[1739794810884,5.6658,2763.5,2763.4,0.72371]
[1739794811389,3.2078,2763.5,2763.4,0.72371]
[1739794812785,3.81260088,2763.9,2763.7,0.72363]
[1739794812786,3.2078,2763.8,2763.7,0.72363]
[1739794812982,5.6658,2763.8,2763.7,0.72363]
[1739794813383,3.2078,2763.8,2763.7,0.72363]
[1739794813982,0.72364,2763.7,2763.5,0.8664]
[1739794814183,0.72364,2763.7,2763.5,1.59008]
[1739794814378,3.2078,2763.8,2763.5,0.8664]
[1739794814583,3.93141,2763.8,2763.6,0.72364]
[1739794815185,3.93142,2763.8,2763.6,0.72363]
[1739794815482,1.80908,2763.7,2762.8,3.2078]
[1739794815780,0.72369,2763.5,2763.3,0.72372]